[Event "Titled Tuesday Blitz June 20 Late 2023"]
[White "Dimitrijevic, Aleksandra"]
[Black "Barria Santos, Jose Guilherme"]
[WhiteFideId "929239"]
[BlackFideId "1939300"]
[WhiteElo "2311"]
[BlackElo "2266"]
[Result "0-1"]
[Round "5"]
[TimeControl "180+2"]
[Date "2023.06.20"]
[WhiteClock "0:01:53"]
[BlackClock "0:00:46"]
[Board "136"]

1. d4 {[%clk 0:03:00]}  Nf6 {[%clk 0:02:58]} 2. c4 {[%clk 0:03:01]}  e6 {[%clk 0:02:54]} 3. g3 {[%clk 0:03:00]}  c5 {[%clk 0:02:54]} 4. d5 {[%clk 0:03:00]}  exd5 {[%clk 0:02:55]} 5. cxd5 {[%clk 0:03:00]}  d6 {[%clk 0:02:56]} 6. Nc3 {[%clk 0:03:00]}  g6 {[%clk 0:02:57]} 7. Bg2 {[%clk 0:03:01]}  Bg7 {[%clk 0:02:57]} 8. e4 {[%clk 0:03:01]}  O-O {[%clk 0:02:58]} 9. Nge2 {[%clk 0:03:01]}  Re8 {[%clk 0:02:58]} 10. O-O {[%clk 0:03:01]}  b5 {[%clk 0:02:58]} 11. Nxb5 {[%clk 0:03:00]}  Nxe4 {[%clk 0:02:59]} 12. Qc2 {[%clk 0:02:43]}  Bf5 {[%clk 0:02:47]} 13. Qc4 {[%clk 0:02:43]}  a6 {[%clk 0:02:44]} 14. Nbc3 {[%clk 0:02:43]}  Nxc3 {[%clk 0:02:40]} 15. bxc3 {[%clk 0:02:42]}  Nd7 {[%clk 0:02:40]} 16. Nf4 {[%clk 0:02:41]}  Ne5 {[%clk 0:02:28]} 17. Qa4 {[%clk 0:02:36]}  Nd3 {[%clk 0:02:19]} 18. Bd2 {[%clk 0:02:27]}  Nxf4 {[%clk 0:02:14]} 19. Qxf4 {[%clk 0:02:28]}  Bd3 {[%clk 0:02:15]} 20. Rfe1 {[%clk 0:02:28]}  Be5 {[%clk 0:02:14]} 21. Qh6 {[%clk 0:02:26]}  Rb8 {[%clk 0:01:58]} 22. Rad1 {[%clk 0:02:23]}  Bc2 {[%clk 0:01:56]} 23. Rc1 {[%clk 0:02:23]}  Rb2 {[%clk 0:01:57]} 24. Bg5 {[%clk 0:02:22]}  f6 {[%clk 0:01:57]} 25. Bf4 {[%clk 0:02:20]}  Rxa2 {[%clk 0:01:44]} 26. Bh3 {[%clk 0:02:19]}  Bb3 {[%clk 0:01:34]} 27. Be6+ {[%clk 0:02:19]}  Rxe6 {[%clk 0:01:35]} 28. dxe6 {[%clk 0:02:18]}  Bxe6 {[%clk 0:01:35]} 29. Bd2 {[%clk 0:02:13]}  Bd5 {[%clk 0:01:18]} 30. c4 {[%clk 0:02:11]}  Bc6 {[%clk 0:01:12]} 31. Bc3 {[%clk 0:02:05]}  Qd7 {[%clk 0:01:01]} 32. Bxe5 {[%clk 0:02:03]}  fxe5 {[%clk 0:00:57]} 33. Qg5 {[%clk 0:01:55]}  Qf7 {[%clk 0:00:47]} 34. Qd8+ {[%clk 0:01:53]}  Kg7 {[%clk 0:00:46]} 35. Qxd6 {[%clk 0:01:53]}  Qxf2# {[%clk 0:00:46]} 0-1


[Site "https://www.chess.com"]

[Event "Titled Tuesday Blitz June 20 Late 2023"]
[White "Doknjas, Neil"]
[Black "Stanisz, Patryk"]
[WhiteFideId "2617587"]
[BlackFideId "1123106"]
[WhiteElo "2152"]
[BlackElo "2069"]
[Result "1-0"]
[Round "5"]
[TimeControl "180+2"]
[Date "2023.06.20"]
[WhiteClock "0:00:08"]
[BlackClock "0:00:00"]
[Board "137"]

1. c4 {[%clk 0:03:00]}  c6 {[%clk 0:02:58]} 2. Nf3 {[%clk 0:02:58]}  d5 {[%clk 0:02:58]} 3. e3 {[%clk 0:02:58]}  Nf6 {[%clk 0:02:59]} 4. Nc3 {[%clk 0:02:58]}  Bf5 {[%clk 0:02:58]} 5. Qb3 {[%clk 0:02:43]}  Qb6 {[%clk 0:02:55]} 6. cxd5 {[%clk 0:02:33]}  Qxb3 {[%clk 0:02:47]} 7. axb3 {[%clk 0:02:32]}  Nxd5 {[%clk 0:02:47]} 8. Nd4 {[%clk 0:02:14]}  Bd7 {[%clk 0:02:43]} 9. Nxd5 {[%clk 0:02:13]}  cxd5 {[%clk 0:02:43]} 10. Nb5 {[%clk 0:02:13]}  Bxb5 {[%clk 0:02:37]} 11. Bxb5+ {[%clk 0:02:14]}  Nc6 {[%clk 0:02:34]} 12. d4 {[%clk 0:02:09]}  e6 {[%clk 0:02:33]} 13. Bd2 {[%clk 0:02:07]}  Bd6 {[%clk 0:02:29]} 14. Ke2 {[%clk 0:01:51]}  Kd7 {[%clk 0:02:02]} 15. f4 {[%clk 0:01:50]}  Rhc8 {[%clk 0:02:02]} 16. g4 {[%clk 0:01:46]}  a6 {[%clk 0:02:02]} 17. Bd3 {[%clk 0:01:40]}  h6 {[%clk 0:01:27]} 18. g5 {[%clk 0:01:18]}  hxg5 {[%clk 0:00:48]} 19. fxg5 {[%clk 0:01:18]}  Rh8 {[%clk 0:00:46]} 20. h4 {[%clk 0:01:13]}  g6 {[%clk 0:00:45]} 21. Raf1 {[%clk 0:00:58]}  Ke7 {[%clk 0:00:39]} 22. Bc3 {[%clk 0:00:37]}  Rh5 {[%clk 0:00:36]} 23. e4 {[%clk 0:00:31]}  Rah8 {[%clk 0:00:28]} 24. e5 {[%clk 0:00:18]}  Bb4 {[%clk 0:00:28]} 25. Rf4 {[%clk 0:00:15]}  Rxg5 {[%clk 0:00:25]} 26. Rhf1 {[%clk 0:00:15]}  Rg2+ {[%clk 0:00:20]} 27. Kf3 {[%clk 0:00:08]}  Bxc3 {[%clk 0:00:03]} 28. Kxg2 {[%clk 0:00:09]}  Rh7 {[%clk 0:00:00]} 29. bxc3 {[%clk 0:00:08]} 1-0


[Site "https://www.chess.com"]

[Event "Titled Tuesday Blitz June 20 Late 2023"]
[White "Kielinkei"]
[Black "Rodriguez Polo, Mateo"]
[BlackFideId "24509396"]
[WhiteElo "2450"]
[BlackElo "2117"]
[Result "0-1"]
[Round "5"]
[TimeControl "180+2"]
[Date "2023.06.20"]
[WhiteClock "0:00:11"]
[BlackClock "0:00:10"]
[Board "138"]

1. d4 {[%clk 0:03:00]}  e6 {[%clk 0:02:58]} 2. c4 {[%clk 0:02:58]}  Bb4+ {[%clk 0:02:52]} 3. Nd2 {[%clk 0:02:57]}  d5 {[%clk 0:02:46]} 4. e3 {[%clk 0:02:53]}  Nf6 {[%clk 0:02:40]} 5. a3 {[%clk 0:02:50]}  Be7 {[%clk 0:02:36]} 6. Ngf3 {[%clk 0:02:49]}  O-O {[%clk 0:02:32]} 7. Bd3 {[%clk 0:02:49]}  c5 {[%clk 0:02:27]} 8. cxd5 {[%clk 0:02:49]}  exd5 {[%clk 0:02:24]} 9. dxc5 {[%clk 0:02:49]}  Bxc5 {[%clk 0:02:24]} 10. b4 {[%clk 0:02:49]}  Bd6 {[%clk 0:02:15]} 11. O-O {[%clk 0:02:47]}  a5 {[%clk 0:02:12]} 12. Bb2 {[%clk 0:02:08]}  Re8 {[%clk 0:02:01]} 13. Nb3 {[%clk 0:02:01]}  Nc6 {[%clk 0:01:57]} 14. b5 {[%clk 0:01:58]}  Ne5 {[%clk 0:01:54]} 15. Nbd4 {[%clk 0:01:47]}  Nxd3 {[%clk 0:01:46]} 16. Qxd3 {[%clk 0:01:48]}  Ne4 {[%clk 0:01:43]} 17. Rac1 {[%clk 0:01:41]}  a4 {[%clk 0:01:30]} 18. h3 {[%clk 0:01:38]}  Bd7 {[%clk 0:01:21]} 19. Nd2 {[%clk 0:01:22]}  Nc5 {[%clk 0:01:14]} 20. Qe2 {[%clk 0:01:19]}  Qg5 {[%clk 0:01:09]} 21. N4f3 {[%clk 0:01:11]}  Qg6 {[%clk 0:01:09]} 22. Kh1 {[%clk 0:01:03]}  Nd3 {[%clk 0:01:04]} 23. Rb1 {[%clk 0:01:03]}  Nf4 {[%clk 0:00:43]} 24. Nh4 {[%clk 0:01:02]}  Nxe2 {[%clk 0:00:40]} 25. Nxg6 {[%clk 0:01:02]}  hxg6 {[%clk 0:00:41]} 26. Rfe1 {[%clk 0:00:52]}  Bxb5 {[%clk 0:00:40]} 27. Bxg7 {[%clk 0:00:51]}  Bd3 {[%clk 0:00:36]} 28. Rb6 {[%clk 0:00:39]}  Bc5 {[%clk 0:00:26]} 29. Rxb7 {[%clk 0:00:32]}  Kxg7 {[%clk 0:00:26]} 30. Rc7 {[%clk 0:00:29]}  Bxa3 {[%clk 0:00:25]} 31. Nf3 {[%clk 0:00:27]}  Bd6 {[%clk 0:00:24]} 32. Rc6 {[%clk 0:00:26]}  Red8 {[%clk 0:00:22]} 33. Rd1 {[%clk 0:00:26]}  Bb5 {[%clk 0:00:21]} 34. Rc2 {[%clk 0:00:23]}  a3 {[%clk 0:00:19]} 35. Rxd5 {[%clk 0:00:20]}  a2 {[%clk 0:00:15]} 36. Rxa2 {[%clk 0:00:20]}  Rxa2 {[%clk 0:00:14]} 37. g3 {[%clk 0:00:18]}  Bc4 {[%clk 0:00:12]} 38. Rd1 {[%clk 0:00:16]}  Be7 {[%clk 0:00:10]} 39. Rb1 {[%clk 0:00:15]}  Rda8 {[%clk 0:00:10]} 40. Kg2 {[%clk 0:00:14]}  Ra1 {[%clk 0:00:10]} 41. Rb7 {[%clk 0:00:14]}  Bf6 {[%clk 0:00:10]} 42. h4 {[%clk 0:00:15]}  Bd5 {[%clk 0:00:10]} 43. Rc7 {[%clk 0:00:14]}  Rg1+ {[%clk 0:00:10]} 44. Kh3 {[%clk 0:00:11]}  Bxf3 {[%clk 0:00:10]} 0-1


[Site "https://www.chess.com"]

[Event "Titled Tuesday Blitz June 20 Late 2023"]
[White "Pan, Kevin"]
[Black "Romero Ruscalleda, Josep"]
[WhiteFideId "30915708"]
[BlackFideId "2231859"]
[WhiteElo "2233"]
[BlackElo "2183"]
[Result "1-0"]
[Round "5"]
[TimeControl "180+2"]
[Date "2023.06.20"]
[WhiteClock "0:00:32"]
[BlackClock "0:00:19"]
[Board "139"]

1. e4 {[%clk 0:02:52]}  g6 {[%clk 0:03:00]} 2. d4 {[%clk 0:02:50]}  Bg7 {[%clk 0:03:00]} 3. Nc3 {[%clk 0:02:48]}  d6 {[%clk 0:03:01]} 4. Nf3 {[%clk 0:02:46]}  a6 {[%clk 0:03:01]} 5. Be2 {[%clk 0:02:47]}  b5 {[%clk 0:03:01]} 6. a3 {[%clk 0:02:47]}  Bb7 {[%clk 0:03:01]} 7. O-O {[%clk 0:02:48]}  Nd7 {[%clk 0:03:00]} 8. Be3 {[%clk 0:02:47]}  e5 {[%clk 0:02:54]} 9. dxe5 {[%clk 0:02:46]}  Nxe5 {[%clk 0:02:54]} 10. Nxe5 {[%clk 0:02:44]}  dxe5 {[%clk 0:02:54]} 11. Nd5 {[%clk 0:02:44]}  Ne7 {[%clk 0:02:46]} 12. c4 {[%clk 0:02:30]}  Nxd5 {[%clk 0:02:30]} 13. cxd5 {[%clk 0:02:21]}  O-O {[%clk 0:02:29]} 14. Rc1 {[%clk 0:02:16]}  f5 {[%clk 0:02:26]} 15. f3 {[%clk 0:02:13]}  Rf7 {[%clk 0:02:20]} 16. a4 {[%clk 0:01:48]}  bxa4 {[%clk 0:02:12]} 17. Qxa4 {[%clk 0:01:46]}  Bf8 {[%clk 0:02:01]} 18. Qb3 {[%clk 0:01:18]}  Rb8 {[%clk 0:01:57]} 19. Ba7 {[%clk 0:01:15]}  Bd6 {[%clk 0:01:14]} 20. Bxb8 {[%clk 0:01:14]}  Qxb8 {[%clk 0:01:14]} 21. Kh1 {[%clk 0:01:12]}  Qa7 {[%clk 0:01:13]} 22. Ra1 {[%clk 0:01:01]}  Kg7 {[%clk 0:00:51]} 23. Qa4 {[%clk 0:00:58]}  Qe3 {[%clk 0:00:34]} 24. Bxa6 {[%clk 0:00:48]}  Bxa6 {[%clk 0:00:33]} 25. Qxa6 {[%clk 0:00:49]}  fxe4 {[%clk 0:00:33]} 26. Rae1 {[%clk 0:00:46]}  Qd2 {[%clk 0:00:29]} 27. fxe4 {[%clk 0:00:46]}  Qxb2 {[%clk 0:00:24]} 28. Rxf7+ {[%clk 0:00:42]}  Kxf7 {[%clk 0:00:23]} 29. Qd3 {[%clk 0:00:35]}  Kg7 {[%clk 0:00:22]} 30. Rf1 {[%clk 0:00:35]}  Qb8 {[%clk 0:00:20]} 31. Qf3 {[%clk 0:00:34]}  Qe8 {[%clk 0:00:20]} 32. Qf6+ {[%clk 0:00:34]}  Kg8 {[%clk 0:00:20]} 33. h4 {[%clk 0:00:33]}  Qe7 {[%clk 0:00:20]} 34. g4 {[%clk 0:00:29]}  Qxf6 {[%clk 0:00:20]} 35. Rxf6 {[%clk 0:00:30]}  Be7 {[%clk 0:00:20]} 36. Re6 {[%clk 0:00:28]}  Bd6 {[%clk 0:00:20]} 37. h5 {[%clk 0:00:28]}  Kf7 {[%clk 0:00:20]} 38. hxg6+ {[%clk 0:00:27]}  hxg6 {[%clk 0:00:20]} 39. Kg2 {[%clk 0:00:28]}  g5 {[%clk 0:00:20]} 40. Rh6 {[%clk 0:00:27]}  Kg7 {[%clk 0:00:20]} 41. Rh1 {[%clk 0:00:28]}  Kg6 {[%clk 0:00:20]} 42. Rc1 {[%clk 0:00:28]}  Kf7 {[%clk 0:00:21]} 43. Kf3 {[%clk 0:00:29]}  Kf6 {[%clk 0:00:21]} 44. Ke3 {[%clk 0:00:29]}  Ke7 {[%clk 0:00:21]} 45. Kd3 {[%clk 0:00:30]}  Kf6 {[%clk 0:00:22]} 46. Kc4 {[%clk 0:00:30]}  Ke7 {[%clk 0:00:22]} 47. Kb5 {[%clk 0:00:31]}  Kd7 {[%clk 0:00:23]} 48. Rf1 {[%clk 0:00:31]}  Ke7 {[%clk 0:00:22]} 49. Rf5 {[%clk 0:00:30]}  Kd7 {[%clk 0:00:21]} 50. Rxg5 {[%clk 0:00:31]}  Be7 {[%clk 0:00:21]} 51. Rg7 {[%clk 0:00:31]}  Kd6 {[%clk 0:00:21]} 52. Rxe7 {[%clk 0:00:31]}  Kxe7 {[%clk 0:00:21]} 53. Kc6 {[%clk 0:00:32]}  Kf6 {[%clk 0:00:20]} 54. Kxc7 {[%clk 0:00:31]}  Kg5 {[%clk 0:00:19]} 55. d6 {[%clk 0:00:32]} 1-0


[Site "https://www.chess.com"]

[Event "Titled Tuesday Blitz June 20 Late 2023"]
[White "Schut, Han"]
[Black "SergioMoralesG"]
[WhiteFideId "1005561"]
[WhiteElo "2024"]
[BlackElo "2433"]
[Result "0-1"]
[Round "5"]
[TimeControl "180+2"]
[Date "2023.06.20"]
[WhiteClock "0:00:25"]
[BlackClock "0:00:05"]
[Board "141"]

1. e4 {[%clk 0:02:59]}  e5 {[%clk 0:02:58]} 2. Nf3 {[%clk 0:03:00]}  Nf6 {[%clk 0:02:59]} 3. Bc4 {[%clk 0:02:59]}  Nc6 {[%clk 0:02:57]} 4. d4 {[%clk 0:02:59]}  exd4 {[%clk 0:02:52]} 5. e5 {[%clk 0:03:00]}  Ne4 {[%clk 0:02:51]} 6. Qe2 {[%clk 0:02:59]}  Nc5 {[%clk 0:02:46]} 7. c3 {[%clk 0:03:00]}  d3 {[%clk 0:02:41]} 8. Qe3 {[%clk 0:02:59]}  Be7 {[%clk 0:02:36]} 9. b4 {[%clk 0:02:59]}  Ne6 {[%clk 0:02:26]} 10. O-O {[%clk 0:02:59]}  O-O {[%clk 0:02:18]} 11. Rd1 {[%clk 0:03:00]}  d5 {[%clk 0:02:03]} 12. Rxd3 {[%clk 0:02:53]}  d4 {[%clk 0:01:36]} 13. Qe1 {[%clk 0:02:47]}  Qe8 {[%clk 0:01:20]} 14. Bxe6 {[%clk 0:02:38]}  fxe6 {[%clk 0:01:09]} 15. Nxd4 {[%clk 0:02:24]}  Nxd4 {[%clk 0:00:46]} 16. cxd4 {[%clk 0:02:18]}  Bd7 {[%clk 0:00:43]} 17. f4 {[%clk 0:01:55]}  Bc6 {[%clk 0:00:40]} 18. a3 {[%clk 0:01:51]}  Qg6 {[%clk 0:00:32]} 19. Rg3 {[%clk 0:01:41]}  Qc2 {[%clk 0:00:24]} 20. Qd2 {[%clk 0:01:38]}  Qe4 {[%clk 0:00:20]} 21. Nc3 {[%clk 0:01:35]}  Qf5 {[%clk 0:00:20]} 22. d5 {[%clk 0:01:29]}  Rad8 {[%clk 0:00:19]} 23. Rd3 {[%clk 0:00:44]}  exd5 {[%clk 0:00:13]} 24. Nxd5 {[%clk 0:00:44]}  Bg5 {[%clk 0:00:10]} 25. g3 {[%clk 0:00:35]}  Qe4 {[%clk 0:00:07]} 26. Bb2 {[%clk 0:00:24]}  Rxd5 {[%clk 0:00:06]} 27. Rxd5 {[%clk 0:00:25]}  Bxd5 {[%clk 0:00:06]} 28. Kf2 {[%clk 0:00:24]}  Qg2+ {[%clk 0:00:05]} 29. Ke3 {[%clk 0:00:24]}  Qf3+ {[%clk 0:00:05]} 30. Kd4 {[%clk 0:00:24]}  Qe4+ {[%clk 0:00:05]} 31. Kc3 {[%clk 0:00:25]}  Qc4# {[%clk 0:00:05]} 0-1


[Site "https://www.chess.com"]

[Event "Titled Tuesday Blitz June 20 Late 2023"]
[White "dodoucb"]
[Black "Palacio,Igor Da Paz"]
[BlackFideId "2121140"]
[WhiteElo "2403"]
[BlackElo "2126"]
[Result "1-0"]
[Round "5"]
[TimeControl "180+2"]
[Date "2023.06.20"]
[WhiteClock "0:00:05"]
[BlackClock "0:00:01"]
[Board "147"]

1. e4 {[%clk 0:02:59]}  c5 {[%clk 0:03:00]} 2. Nc3 {[%clk 0:02:57]}  Nc6 {[%clk 0:02:58]} 3. g3 {[%clk 0:02:56]}  g6 {[%clk 0:02:58]} 4. Bg2 {[%clk 0:02:56]}  Bg7 {[%clk 0:02:58]} 5. d3 {[%clk 0:02:55]}  e6 {[%clk 0:02:57]} 6. Be3 {[%clk 0:02:51]}  d6 {[%clk 0:02:56]} 7. f4 {[%clk 0:02:50]}  Nge7 {[%clk 0:02:55]} 8. Nf3 {[%clk 0:02:50]}  O-O {[%clk 0:02:52]} 9. O-O {[%clk 0:02:45]}  b6 {[%clk 0:02:47]} 10. d4 {[%clk 0:02:26]}  cxd4 {[%clk 0:02:42]} 11. Nxd4 {[%clk 0:02:25]}  Bb7 {[%clk 0:02:37]} 12. Qd2 {[%clk 0:02:15]}  a6 {[%clk 0:02:21]} 13. Rad1 {[%clk 0:02:10]}  Qc7 {[%clk 0:02:17]} 14. Nxc6 {[%clk 0:01:52]}  Nxc6 {[%clk 0:02:00]} 15. Qxd6 {[%clk 0:01:46]}  Qxd6 {[%clk 0:01:56]} 16. Rxd6 {[%clk 0:01:45]}  b5 {[%clk 0:01:53]} 17. e5 {[%clk 0:01:25]}  Rfc8 {[%clk 0:01:40]} 18. Rd7 {[%clk 0:01:21]}  Rab8 {[%clk 0:01:37]} 19. Rfd1 {[%clk 0:00:32]}  Bf8 {[%clk 0:01:34]} 20. Ne4 {[%clk 0:00:27]}  Kg7 {[%clk 0:01:20]} 21. Ng5 {[%clk 0:00:21]}  Nd8 {[%clk 0:00:52]} 22. Bxb7 {[%clk 0:00:16]}  Nxb7 {[%clk 0:00:49]} 23. Rxf7+ {[%clk 0:00:15]}  Kg8 {[%clk 0:00:49]} 24. Rdd7 {[%clk 0:00:15]}  Nc5 {[%clk 0:00:45]} 25. Ra7 {[%clk 0:00:09]}  Ra8 {[%clk 0:00:34]} 26. Rac7 {[%clk 0:00:07]}  Rab8 {[%clk 0:00:30]} 27. Nxh7 {[%clk 0:00:07]}  Ne4 {[%clk 0:00:13]} 28. Nf6+ {[%clk 0:00:03]}  Nxf6 {[%clk 0:00:13]} 29. exf6 {[%clk 0:00:04]}  Rxc7 {[%clk 0:00:06]} 30. Rxc7 {[%clk 0:00:05]}  Rd8 {[%clk 0:00:07]} 31. c3 {[%clk 0:00:04]}  Rd1+ {[%clk 0:00:05]} 32. Kf2 {[%clk 0:00:05]}  Rb1 {[%clk 0:00:06]} 33. b3 {[%clk 0:00:04]}  Rb2+ {[%clk 0:00:06]} 34. Kf3 {[%clk 0:00:05]}  Rc2 {[%clk 0:00:06]} 35. Bd4 {[%clk 0:00:06]}  Rxh2 {[%clk 0:00:02]} 36. f7+ {[%clk 0:00:07]}  Kh7 {[%clk 0:00:02]} 37. Rc8 {[%clk 0:00:07]}  Bh6 {[%clk 0:00:01]} 38. Rh8# {[%clk 0:00:05]} 1-0


[Site "https://www.chess.com"]

[Event "Titled Tuesday Blitz June 20 Late 2023"]
[White "Barrionuevo, Pablo"]
[Black "Arnold, Ken"]
[WhiteFideId "110566"]
[BlackFideId "2056836"]
[WhiteElo "2212"]
[BlackElo "2391"]
[Result "0-1"]
[Round "5"]
[TimeControl "180+2"]
[Date "2023.06.20"]
[WhiteClock "0:01:27"]
[BlackClock "0:01:22"]
[Board "149"]

1. d4 {[%clk 0:03:00]}  c6 {[%clk 0:02:59]} 2. Nf3 {[%clk 0:03:01]}  d5 {[%clk 0:03:00]} 3. c3 {[%clk 0:03:00]}  Nf6 {[%clk 0:03:00]} 4. Bg5 {[%clk 0:03:00]}  Bf5 {[%clk 0:02:59]} 5. Nbd2 {[%clk 0:03:00]}  Ne4 {[%clk 0:02:59]} 6. Bh4 {[%clk 0:03:00]}  h6 {[%clk 0:02:58]} 7. Nxe4 {[%clk 0:02:58]}  Bxe4 {[%clk 0:02:58]} 8. Nd2 {[%clk 0:02:59]}  Bh7 {[%clk 0:02:57]} 9. e4 {[%clk 0:02:51]}  Qb6 {[%clk 0:02:53]} 10. exd5 {[%clk 0:02:50]}  Qxb2 {[%clk 0:02:49]} 11. Qc1 {[%clk 0:02:36]}  Qxc1+ {[%clk 0:02:47]} 12. Rxc1 {[%clk 0:02:37]}  cxd5 {[%clk 0:02:47]} 13. Bb5+ {[%clk 0:02:35]}  Nc6 {[%clk 0:02:46]} 14. O-O {[%clk 0:02:36]}  e6 {[%clk 0:02:41]} 15. c4 {[%clk 0:02:34]}  Kd7 {[%clk 0:02:32]} 16. cxd5 {[%clk 0:02:32]}  exd5 {[%clk 0:02:32]} 17. Nb3 {[%clk 0:02:31]}  a6 {[%clk 0:02:19]} 18. Bxc6+ {[%clk 0:02:23]}  bxc6 {[%clk 0:02:19]} 19. Nc5+ {[%clk 0:02:08]}  Bxc5 {[%clk 0:02:17]} 20. Rxc5 {[%clk 0:02:09]}  Bd3 {[%clk 0:02:04]} 21. Re1 {[%clk 0:02:03]}  Rhe8 {[%clk 0:02:03]} 22. Rd1 {[%clk 0:02:02]}  Bc4 {[%clk 0:02:02]} 23. Ra5 {[%clk 0:01:56]}  Re4 {[%clk 0:01:58]} 24. Bg3 {[%clk 0:01:55]}  Rae8 {[%clk 0:01:57]} 25. f3 {[%clk 0:01:55]}  Re2 {[%clk 0:01:54]} 26. a3 {[%clk 0:01:48]}  Ra2 {[%clk 0:01:49]} 27. Re1 {[%clk 0:01:48]}  Rxe1+ {[%clk 0:01:47]} 28. Bxe1 {[%clk 0:01:49]}  Bb5 {[%clk 0:01:44]} 29. Bb4 {[%clk 0:01:47]}  h5 {[%clk 0:01:38]} 30. h4 {[%clk 0:01:47]}  f6 {[%clk 0:01:37]} 31. Bf8 {[%clk 0:01:46]}  g5 {[%clk 0:01:36]} 32. hxg5 {[%clk 0:01:46]}  fxg5 {[%clk 0:01:36]} 33. a4 {[%clk 0:01:40]}  Bc4 {[%clk 0:01:30]} 34. Bh6 {[%clk 0:01:36]}  g4 {[%clk 0:01:30]} 35. fxg4 {[%clk 0:01:36]}  hxg4 {[%clk 0:01:28]} 36. Bf4 {[%clk 0:01:37]}  Kc8 {[%clk 0:01:23]} 37. Bd6 {[%clk 0:01:27]}  Kb7 {[%clk 0:01:22]} 0-1


[Site "https://www.chess.com"]

[Event "Titled Tuesday Blitz June 20 Late 2023"]
[White "Navia Alvarez, Edwin Adrian"]
[Black "Mazurkiewicz, Michal"]
[WhiteFideId "4402898"]
[BlackFideId "1124943"]
[WhiteElo "1992"]
[BlackElo "2063"]
[Result "0-1"]
[Round "5"]
[TimeControl "180+2"]
[Date "2023.06.20"]
[WhiteClock "0:00:10"]
[BlackClock "0:00:36"]
[Board "150"]

1. d4 {[%clk 0:02:30]}  Nf6 {[%clk 0:02:59]} 2. Bf4 {[%clk 0:02:31]}  g6 {[%clk 0:02:56]} 3. Nc3 {[%clk 0:02:30]}  d5 {[%clk 0:02:55]} 4. h4 {[%clk 0:02:30]}  h6 {[%clk 0:02:53]} 5. Qd2 {[%clk 0:02:29]}  Bg7 {[%clk 0:02:52]} 6. O-O-O {[%clk 0:02:27]}  c6 {[%clk 0:02:46]} 7. e3 {[%clk 0:02:21]}  b5 {[%clk 0:02:43]} 8. f3 {[%clk 0:02:21]}  O-O {[%clk 0:02:41]} 9. Kb1 {[%clk 0:02:19]}  Nbd7 {[%clk 0:02:36]} 10. g4 {[%clk 0:02:19]}  Nh7 {[%clk 0:02:32]} 11. e4 {[%clk 0:02:12]}  Nb6 {[%clk 0:02:05]} 12. Bxh6 {[%clk 0:02:06]}  b4 {[%clk 0:01:59]} 13. Nce2 {[%clk 0:02:00]}  Nc4 {[%clk 0:01:59]} 14. Qc1 {[%clk 0:01:45]}  dxe4 {[%clk 0:01:56]} 15. Bxg7 {[%clk 0:01:34]}  Kxg7 {[%clk 0:01:56]} 16. Ng3 {[%clk 0:01:08]}  Nd6 {[%clk 0:01:51]} 17. fxe4 {[%clk 0:01:06]}  Bxg4 {[%clk 0:01:50]} 18. Be2 {[%clk 0:01:06]}  Qd7 {[%clk 0:01:42]} 19. h5 {[%clk 0:01:05]}  g5 {[%clk 0:01:36]} 20. Nf3 {[%clk 0:00:47]}  f6 {[%clk 0:01:31]} 21. e5 {[%clk 0:00:47]}  Nf5 {[%clk 0:01:28]} 22. Rhg1 {[%clk 0:00:41]}  Qd5 {[%clk 0:01:07]} 23. Nxf5+ {[%clk 0:00:35]}  Bxf5 {[%clk 0:01:07]} 24. exf6+ {[%clk 0:00:24]}  exf6 {[%clk 0:01:06]} 25. Rdf1 {[%clk 0:00:20]}  Rae8 {[%clk 0:01:01]} 26. Bd1 {[%clk 0:00:20]}  a5 {[%clk 0:00:55]} 27. Ka1 {[%clk 0:00:18]}  a4 {[%clk 0:00:50]} 28. h6+ {[%clk 0:00:17]}  Kh8 {[%clk 0:00:49]} 29. Qd2 {[%clk 0:00:15]}  a3 {[%clk 0:00:43]} 30. bxa3 {[%clk 0:00:13]}  bxa3 {[%clk 0:00:42]} 31. c3 {[%clk 0:00:12]}  Rb8 {[%clk 0:00:40]} 32. Bb3 {[%clk 0:00:12]}  Rxb3 {[%clk 0:00:35]} 33. axb3 {[%clk 0:00:13]}  Qxb3 {[%clk 0:00:36]} 34. Ne1 {[%clk 0:00:10]}  Qb1# {[%clk 0:00:36]} 0-1


[Site "https://www.chess.com"]